bitfinex/quotes_BTCUSD_20241117
["timestamp","ask_amount","ask_price","bid_price","bid_amount"]
[1731822239246,0.002,90425.0,90424.0,0.11671694]
[1731822239705,0.16524829,90434.0,90427.0,0.22117]
[1731822239947,0.16524829,90434.0,90431.0,0.00304223]
[1731822240395,0.158275,90436.0,90431.0,0.00304223]
[1731822240623,0.189377,90435.0,90432.0,0.00308381]
[1731822240875,0.110579,90433.0,90432.0,0.00308381]
[1731822241326,0.299953,90435.0,90428.0,0.00304223]
[1731822241327,0.110583,90429.0,90428.0,0.00304223]
[1731822241544,0.221158,90433.0,90428.0,0.00304223]
[1731822241770,0.110579,90433.0,90427.0,0.110585]
[1731822242005,0.189376,90435.0,90431.0,0.00304223]
[1731822242474,0.110579,90433.0,90432.0,0.0030819]
[1731822243172,0.110585,90428.0,90423.0,0.00304223]
[1731822243394,0.22116,90432.0,90423.0,0.00304223]
[1731822243395,0.110586,90427.0,90423.0,0.00304223]
[1731822243615,0.221163,90431.0,90423.0,0.00304223]
[1731822243616,0.01032267,90431.0,90423.0,0.00304223]
[1731822243828,0.221163,90431.0,90423.0,0.00304223]
[1731822244051,0.110587,90426.0,90423.0,0.00304223]
[1731822244290,0.110589,90425.0,90423.0,0.00304223]
[1731822244512,0.22117,90428.0,90423.0,0.00304223]
[1731822244735,0.11059,90424.0,90423.0,0.00304223]
[1731822245417,0.110587,90426.0,90423.0,0.00304223]
[1731822245648,0.221165,90430.0,90423.0,0.00304223]
[1731822245862,0.110587,90427.0,90423.0,0.00304223]
[1731822246369,0.110588,90426.0,90423.0,0.00304223]
[1731822246579,0.002,90428.0,90423.0,0.00304223]
[1731822246796,0.221172,90427.0,90423.0,0.00304223]
[1731822247016,0.10259,90424.0,90423.0,0.00304223]
[1731822249260,0.10259,90424.0,90423.0,0.00612382]
[1731822249477,0.10259,90424.0,90423.0,0.00304223]
[1731822249710,0.10459,90424.0,90423.0,0.00612382]
[1731822249937,0.10459,90424.0,90423.0,0.00304223]
[1731822250154,0.23109,90424.0,90423.0,0.00612382]
[1731822250376,0.23309,90424.0,90423.0,0.00389793]
[1731822250855,0.26205252,90424.0,90423.0,0.0008557]
[1731822251324,0.26405252,90424.0,90423.0,0.0008557]
[1731822251806,0.37311507,90424.0,90423.0,0.0008557]
[1731822252241,0.26405252,90424.0,90423.0,0.0008557]
[1731822252739,0.26405672,90424.0,90423.0,0.0008557]
[1731822252962,0.26205672,90424.0,90423.0,0.0008557]
[1731822253183,0.26405672,90424.0,90423.0,0.0008557]
[1731822253633,0.26205672,90424.0,90423.0,0.0008557]
[1731822253846,0.24141224,90424.0,90423.0,0.0008557]
[1731822254064,0.24341224,90424.0,90423.0,0.0008557]
[1731822254950,0.24341664,90424.0,90423.0,0.0008557]
[1731822255610,0.24342076,90424.0,90423.0,0.0008557]
[1731822255829,0.39855265,90424.0,90423.0,0.0008557]
[1731822256044,0.41921516,90424.0,90423.0,0.0008557]
[1731822257026,0.41721516,90424.0,90423.0,0.0008557]
[1731822257458,0.523222,90424.0,90423.0,0.0008557]
[1731822257679,0.42421516,90424.0,90423.0,0.0008557]
[1731822258146,0.40355265,90424.0,90423.0,0.0008557]
[1731822258357,0.42422043,90424.0,90423.0,0.0008557]
[1731822259088,0.6314939,90424.0,90423.0,0.0008557]
[1731822259328,0.53248706,90424.0,90423.0,0.0008557]
[1731822259808,0.67899733,90424.0,90423.0,0.0008557]
[1731822260029,0.56689186,90424.0,90423.0,0.0008557]
[1731822260473,0.67898004,90424.0,90423.0,0.0008557]
[1731822260695,0.70154961,90424.0,90423.0,0.0008557]
[1731822260931,0.77102778,90424.0,90423.0,0.0008557]
[1731822261424,0.76902702,90424.0,90423.0,0.0008557]
[1731822261650,0.62253404,90424.0,90423.0,0.0008557]
[1731822262090,0.61453404,90424.0,90423.0,0.0008557]
[1731822262303,0.67908477,90424.0,90423.0,0.0008557]
[1731822262526,0.58012023,90424.0,90423.0,0.0008557]
[1731822262747,0.6145374,90424.0,90423.0,0.0008557]
[1731822262995,0.58118467,90424.0,90423.0,0.0008557]
[1731822263230,0.5487675,90424.0,90423.0,0.0008557]
[1731822263467,0.58318461,90424.0,90423.0,0.0008557]
[1731822263686,0.5487675,90424.0,90423.0,0.0008557]
[1731822263908,0.58318645,90424.0,90423.0,0.0008557]
[1731822264568,0.5487675,90424.0,90423.0,0.0008557]
[1731822265239,0.5384349,90424.0,90423.0,0.0008557]
[1731822265454,0.58318564,90424.0,90423.0,0.0008557]
[1731822265673,0.54876332,90424.0,90423.0,0.0008557]
[1731822265899,0.58318936,90424.0,90423.0,0.0008557]
[1731822266353,0.58318417,90424.0,90423.0,0.0008557]
[1731822266629,0.57285647,90424.0,90423.0,0.0008557]
[1731822266846,0.5831834,90424.0,90423.0,0.0008557]
[1731822267518,0.58317231,90424.0,90423.0,0.0008557]
[1731822268185,0.5439291,90424.0,90423.0,0.0008557]
[1731822268406,0.58317272,90424.0,90423.0,0.0008557]
[1731822269051,0.68211592,90424.0,90423.0,0.0008557]
[1731822269779,0.58317272,90424.0,90423.0,0.0008557]
[1731822270708,0.73154437,90424.0,90423.0,0.0008557]
[1731822271130,0.58317272,90424.0,90423.0,0.0008557]
[1731822271370,0.58317272,90424.0,90423.0,0.00056149]
[1731822271654,0.94858851,90424.0,90423.0,0.00056149]
[1731822271893,1.14663729,90424.0,90423.0,0.00056149]
[1731822272532,0.23615277,90420.0,90419.0,0.0008557]
[1731822272735,0.56745491,90420.0,90419.0,0.0008557]
[1731822272960,0.41888498,90420.0,90419.0,0.0008557]
[1731822273433,0.56745491,90420.0,90419.0,0.0008557]
[1731822273663,0.41888498,90420.0,90419.0,0.0008557]
[1731822273883,0.48351492,90420.0,90419.0,0.0008557]
[1731822274131,0.38450117,90420.0,90419.0,0.0008557]
[1731822274599,0.38451103,90420.0,90419.0,0.0008557]
[1731822275049,0.38451103,90420.0,90405.0,0.0008561]
[1731822275050,0.13055777,90407.0,90405.0,0.0008561]
[1731822275291,0.66426723,90407.0,90405.0,0.0008561]
[1731822275511,0.56554583,90407.0,90405.0,0.0008561]
[1731822275729,0.38253476,90407.0,90405.0,0.0008561]
[1731822276019,0.14987221,90407.0,90405.0,0.0008561]
[1731822276456,0.04126221,90407.0,90405.0,0.0008561]
[1731822276674,0.04126438,90407.0,90405.0,0.00389833]
[1731822276931,0.04126438,90407.0,90406.0,0.11451013]
[1731822276932,0.03099648,90407.0,90406.0,0.11451013]
[1731822277198,0.02299648,90407.0,90406.0,0.11451013]
[1731822277426,0.02499648,90407.0,90406.0,0.11451013]
[1731822277884,0.02499648,90407.0,90406.0,0.0008559]
[1731822278107,0.13560648,90407.0,90406.0,0.0008559]
[1731822279086,0.13360648,90407.0,90406.0,0.0008559]
[1731822279329,0.13560648,90407.0,90406.0,0.0008559]
[1731822279599,0.02499648,90407.0,90406.0,0.00389813]
[1731822279803,0.02299648,90407.0,90406.0,0.00389813]
[1731822280020,0.05808985,90407.0,90406.0,0.00389813]
[1731822280470,0.05608985,90407.0,90406.0,0.11451013]
[1731822280910,0.002,90407.0,90406.0,0.11451013]
[1731822281147,0.05579008,90407.0,90406.0,0.11451013]
[1731822282088,0.02268849,90407.0,90406.0,0.24611013]
[1731822282313,0.02068849,90407.0,90406.0,0.37817268]
[1731822282541,0.02268849,90407.0,90406.0,0.3780713]
[1731822282755,0.002,90407.0,90406.0,0.3780713]
[1731822282986,0.00827425,90420.0,90408.0,0.023]
[1731822283201,0.00827425,90422.0,90417.0,0.221195]
[1731822283432,0.00998585,90424.0,90422.0,0.11363423]
[1731822283673,0.05547722,90423.0,90422.0,0.00304223]
[1731822283887,0.05547722,90423.0,90422.0,0.11363423]
[1731822284107,0.0017116,90423.0,90422.0,0.11363423]
[1731822284418,0.05547752,90423.0,90422.0,0.11363423]
[1731822284578,0.0017116,90423.0,90422.0,0.11363423]
[1731822284787,0.02238583,90423.0,90422.0,0.37729678]
[1731822285264,0.0017116,90423.0,90422.0,0.42139793]
[1731822285696,0.0037116,90423.0,90422.0,0.42139793]
[1731822286094,0.0017116,90423.0,90422.0,0.42139793]
[1731822286521,0.0037116,90423.0,90422.0,0.42139793]
[1731822287010,0.0017116,90423.0,90422.0,0.42139793]
[1731822287257,0.0037116,90423.0,90422.0,0.42139793]
[1731822287469,0.0037116,90423.0,90422.0,0.42448906]
[1731822289011,0.0017116,90423.0,90422.0,0.42448906]
[1731822289235,0.0037116,90423.0,90422.0,0.42448906]
[1731822289680,0.0017116,90423.0,90422.0,0.42448906]
[1731822290159,0.0017116,90423.0,90422.0,0.38038791]
[1731822290382,0.0017116,90423.0,90422.0,0.00309113]
[1731822290383,0.1143026,90423.0,90422.0,0.00309113]
[1731822290605,0.13493211,90423.0,90422.0,0.00309113]
[1731822290813,0.13493211,90423.0,90419.0,0.0008558]
[1731822290814,0.110595,90420.0,90419.0,0.0008558]
[1731822291035,0.13122451,90420.0,90419.0,0.0008558]
[1731822291493,0.14153984,90420.0,90419.0,0.0008558]
[1731822292253,0.13353984,90420.0,90419.0,0.0008558]
[1731822292467,0.12322451,90420.0,90419.0,0.0008558]
[1731822293140,0.13122451,90420.0,90419.0,0.0008558]
[1731822293554,0.02262951,90420.0,90419.0,0.0008558]
[1731822293809,0.13322451,90420.0,90419.0,0.0008558]
[1731822294005,0.13122451,90420.0,90419.0,0.00394458]
[1731822294232,0.13222451,90420.0,90419.0,0.0008558]
[1731822294454,0.13222451,90420.0,90419.0,0.00394458]
[1731822295356,0.111595,90420.0,90419.0,0.00394458]
[1731822295595,0.110595,90420.0,90419.0,0.00394458]
[1731822295836,0.110595,90420.0,90419.0,0.0008558]
[1731822295837,0.112595,90420.0,90419.0,0.0008558]
[1731822296082,0.13315498,90420.0,90419.0,0.0008558]
[1731822296321,0.13115498,90420.0,90419.0,0.0008558]
[1731822296536,0.13315498,90420.0,90419.0,0.0008558]
[1731822296759,0.14347031,90420.0,90419.0,0.0008558]
[1731822297228,0.14147031,90420.0,90419.0,0.0008558]
[1731822297413,0.14341716,90420.0,90419.0,0.0008558]
[1731822298733,0.03282216,90420.0,90419.0,0.0008558]
[1731822299004,0.002,90420.0,90419.0,0.11449403]
[1731822299255,0.0017116,90423.0,90419.0,0.00389803]
[1731822299469,0.0017116,90423.0,90422.0,0.110592]
[1731822299684,0.0017116,90423.0,90422.0,0.11363423]
[1731822299923,0.0017116,90423.0,90422.0,0.11675185]
[1731822300405,0.0017116,90423.0,90422.0,0.2488144]
[1731822301070,0.0037116,90423.0,90422.0,0.2508144]
[1731822301536,0.0037116,90423.0,90422.0,0.25302594]
[1731822301985,0.0037116,90423.0,90422.0,0.35802594]
[1731822302202,0.0017116,90423.0,90422.0,0.3558144]
[1731822302661,0.0037116,90423.0,90422.0,0.3558144]
[1731822303138,0.0037116,90423.0,90422.0,0.3538144]
[1731822303360,0.0037116,90423.0,90422.0,0.3588144]
[1731822303589,0.0037116,90423.0,90422.0,0.4912144]
[1731822304516,0.0037116,90423.0,90422.0,0.4892144]
[1731822304726,0.0037116,90423.0,90422.0,0.4912144]
[1731822304949,0.0037116,90423.0,90422.0,0.52292448]
[1731822305373,0.0017116,90423.0,90422.0,0.52292448]
[1731822305602,0.16524829,90435.0,90433.0,0.37362123]
[1731822305847,0.16524829,90435.0,90433.0,0.66198115]
[1731822306065,0.03292014,90458.0,90433.0,0.69676655]
[1731822306066,0.03294725,90458.0,90433.0,0.69676655]
[1731822306291,0.0009939,90452.0,90433.0,0.69876655]
[1731822306761,0.0009939,90452.0,90433.0,0.66706875]
[1731822306998,0.0009939,90452.0,90445.0,0.12360623]
[1731822306999,0.15895969,90446.0,90445.0,0.12360623]
[1731822307206,0.15895969,90446.0,90445.0,0.53496615]
[1731822307453,0.02058556,90459.0,90449.0,0.13660123]
[1731822307709,0.000999,90464.0,90449.0,0.24566378]
[1731822307926,0.03087884,90463.0,90449.0,0.24873604]
[1731822308138,0.000999,90464.0,90449.0,0.24873604]
[1731822308139,0.03087884,90462.0,90449.0,0.24873604]
[1731822308361,0.01029328,90463.0,90449.0,0.24873604]
[1731822308575,0.03087723,90462.0,90449.0,0.24873604]
[1731822308790,0.01029328,90463.0,90449.0,0.24873604]
[1731822309043,0.02058206,90462.0,90449.0,0.24873604]
[1731822309256,0.02058206,90461.0,90449.0,0.24873604]
[1731822309502,0.0028557,90450.0,90449.0,0.24873604]
[1731822310414,0.0028557,90450.0,90449.0,0.2934293]
[1731822311920,0.0028557,90450.0,90449.0,0.3934293]
[1731822314455,0.0008557,90450.0,90449.0,0.34873604]
[1731822314698,0.0028557,90450.0,90449.0,0.34873604]
[1731822315153,0.0008557,90450.0,90449.0,0.34873604]
[1731822315623,0.0028557,90450.0,90449.0,0.34873604]
[1731822316073,0.0028557,90450.0,90449.0,0.39449942]
[1731822316542,0.0008557,90450.0,90449.0,0.39449942]
[1731822317902,0.0028557,90450.0,90449.0,0.39449942]
[1731822318380,0.0008557,90450.0,90449.0,0.39449942]
[1731822319309,0.0028557,90450.0,90449.0,0.39449942]
[1731822319978,0.0028557,90450.0,90449.0,0.42449942]
[1731822320223,0.0028557,90450.0,90449.0,0.51379942]
[1731822320723,0.0008557,90450.0,90449.0,0.51379942]
[1731822321155,0.0028557,90450.0,90449.0,0.51379942]
[1731822321623,0.0028557,90450.0,90449.0,0.51579942]
[1731822321624,0.0008557,90450.0,90449.0,0.51579942]
[1731822321837,0.0028557,90450.0,90449.0,0.54749722]
[1731822322070,0.16195859,90472.0,90471.0,0.11357423]
[1731822322326,0.16294419,90472.0,90471.0,0.11357423]
[1731822322539,0.16195859,90472.0,90471.0,0.1165699]
[1731822322826,0.0456,90476.0,90475.0,0.11356923]
[1731822323029,0.0771,90484.0,90481.0,0.11356223]
[1731822323461,0.0771,90484.0,90482.0,0.110519]
[1731822323916,0.0771,90484.0,90482.0,0.11356123]
[1731822324135,0.0017112,90489.0,90482.0,0.11356123]
[1731822324398,0.0017112,90489.0,90482.0,0.11655615]
[1731822324876,0.0017112,90489.0,90482.0,0.3536187]
[1731822324877,0.0018556,90483.0,90482.0,0.3536187]
[1731822325317,0.0018556,90483.0,90482.0,0.39922907]
[1731822326897,0.0008556,90483.0,90482.0,0.39922907]
[1731822327121,0.0018556,90483.0,90482.0,0.39922907]
[1731822327742,0.0008556,90483.0,90482.0,0.40122907]
[1731822328002,0.0018556,90483.0,90482.0,0.40122907]
[1731822328427,0.0008556,90483.0,90482.0,0.40122907]
[1731822329508,0.0018556,90483.0,90482.0,0.40122907]
[1731822329748,0.0017122,90500.0,90498.0,0.00804223]
[1731822329948,0.0017122,90500.0,90498.0,0.65910115]
[1731822330165,0.0017122,90500.0,90498.0,0.68433428]
[1731822330419,0.0017122,90500.0,90498.0,0.66007131]
[1731822330866,0.0017122,90500.0,90498.0,0.66207131]
[1731822331699,0.0017122,90500.0,90498.0,0.66007131]
[1731822331909,0.0017122,90500.0,90498.0,0.70607737]
[1731822332361,0.0018562,90499.0,90498.0,0.70607737]
[1731822333006,0.0018562,90499.0,90498.0,0.70807737]
[1731822333415,0.0018562,90499.0,90498.0,0.70607737]
[1731822333837,0.0008562,90499.0,90498.0,0.70607737]
[1731822334455,0.0008562,90499.0,90498.0,0.70693247]
[1731822334682,0.0018562,90499.0,90498.0,0.70693247]
[1731822335324,0.0018562,90499.0,90498.0,0.63103247]
[1731822335537,0.0018562,90499.0,90498.0,0.63303247]
[1731822335758,0.0018562,90499.0,90498.0,0.63103247]
[1731822337004,0.0015601,90508.0,90500.0,0.1]
[1731822337213,0.0784,90504.0,90500.0,0.1]
[1731822337422,0.0784,90504.0,90501.0,0.00298566]
[1731822337629,0.0784,90504.0,90503.0,0.210493]
[1731822338109,0.0784,90504.0,90503.0,0.21347766]
[1731822338329,0.20943117,90504.0,90503.0,0.00298466]
[1731822338606,0.09894153,90504.0,90498.0,0.0008551]
[1731822338840,0.110498,90499.0,90498.0,0.0008551]
[1731822339035,0.20943953,90499.0,90498.0,0.0008551]
[1731822339242,0.24230598,90499.0,90498.0,0.0008551]
[1731822341256,0.13180798,90499.0,90498.0,0.0008551]
[1731822341680,0.24230598,90499.0,90498.0,0.0038425]
[1731822342032,0.24230598,90499.0,90498.0,0.0008551]
[1731822342543,0.13180798,90499.0,90498.0,0.0008551]
[1731822342772,0.24230598,90499.0,90498.0,0.003844]
[1731822343011,0.24330598,90499.0,90498.0,0.003844]
[1731822343495,0.24230598,90499.0,90498.0,0.003844]
[1731822343943,0.24230598,90499.0,90498.0,0.0008551]
[1731822344395,0.3533263,90499.0,90498.0,0.0008551]
[1731822344614,0.4018263,90499.0,90498.0,0.0008551]
[1731822344852,0.110516,90484.0,90483.0,0.16524829]
[1731822345073,0.23911831,90484.0,90483.0,0.16524829]
[1731822345343,0.23911831,90484.0,90483.0,0.00299229]
[1731822345567,0.110526,90476.0,90475.0,0.00304223]
[1731822345796,0.1640405,90476.0,90475.0,0.00304223]
[1731822346012,0.16403952,90476.0,90475.0,0.00304223]
[1731822346233,0.16404155,90476.0,90475.0,0.00304223]
[1731822346472,0.16404155,90476.0,90472.0,0.00304223]
[1731822346473,0.05351555,90476.0,90472.0,0.00304223]
[1731822346675,0.221041,90481.0,90472.0,0.00304223]
[1731822346676,0.05351555,90475.0,90472.0,0.00304223]
[1731822346909,0.05351555,90474.0,90472.0,0.00304223]
[1731822347122,0.221041,90481.0,90472.0,0.00304223]
[1731822347123,0.05351555,90473.0,90472.0,0.00304223]
[1731822347798,0.05351555,90473.0,90472.0,0.11357323]
[1731822348283,0.0205829,90473.0,90472.0,0.11357323]
[1731822349432,0.05354439,90473.0,90472.0,0.11357323]
[1731822349698,0.05454439,90473.0,90472.0,0.11357323]
[1731822350366,0.0215829,90473.0,90472.0,0.11357323]
[1731822350801,0.0215829,90473.0,90472.0,0.24563578]
[1731822351029,0.05455475,90473.0,90472.0,0.24563578]
[1731822351523,0.0215829,90473.0,90472.0,0.24563578]
[1731822351762,0.02160917,90473.0,90472.0,0.24563578]
[1731822351995,0.01360917,90473.0,90472.0,0.24563578]
[1731822354262,0.01360917,90473.0,90472.0,0.13657323]
[1731822354925,0.03297164,90473.0,90472.0,0.13657323]
[1731822355411,0.0458,90482.0,90474.0,0.221056]
[1731822355655,0.03296829,90481.0,90474.0,0.221056]
[1731822355867,0.03296829,90480.0,90478.0,0.110522]
[1731822356082,0.03296829,90479.0,90476.0,0.221053]
[1731822356296,0.0458,90482.0,90478.0,0.110524]
[1731822356521,0.03296535,90481.0,90478.0,0.110524]
[1731822356744,0.03296535,90480.0,90479.0,0.110521]
[1731822357904,0.03296535,90480.0,90472.0,0.02689783]
[1731822357905,0.14348735,90480.0,90475.0,0.110527]
[1731822358123,0.03294359,90480.0,90472.0,0.00389783]
[1731822358332,0.221048,90478.0,90472.0,0.00389783]
[1731822358563,0.11484359,90479.0,90472.0,0.00389783]
[1731822358564,0.110528,90475.0,90472.0,0.00389783]
[1731822358790,0.110528,90475.0,90473.0,0.00289369]
[1731822359019,0.14347159,90475.0,90473.0,0.00289369]
[1731822359253,0.110528,90475.0,90473.0,0.00289369]
[1731822359469,0.110525,90477.0,90473.0,0.00289369]
[1731822360371,0.0819,90479.0,90474.0,0.110528]
[1731822360629,0.11484359,90479.0,90474.0,0.00289335]
[1731822360849,0.110527,90475.0,90474.0,0.00289335]
[1731822361075,0.110527,90475.0,90472.0,0.0008556]
[1731822361350,0.25396586,90478.0,90472.0,0.0008556]
[1731822361570,0.110529,90474.0,90473.0,0.00289319]
[1731822362240,0.03291786,90477.0,90472.0,0.0008556]
[1731822362241,0.11053,90473.0,90472.0,0.0008556]
[1731822362456,0.19243,90473.0,90472.0,0.0008556]
[1731822363097,0.22534786,90473.0,90472.0,0.0008556]
[1731822363318,0.19243,90473.0,90472.0,0.0008556]
[1731822363532,0.22534786,90473.0,90472.0,0.0008556]
[1731822363768,0.19243,90473.0,90472.0,0.0008556]
[1731822363987,0.24592801,90473.0,90472.0,0.0008556]
[1731822364240,0.21301015,90473.0,90472.0,0.0008556]
[1731822364472,0.24592801,90473.0,90472.0,0.0008556]
[1731822365390,0.21301015,90473.0,90472.0,0.0008556]
[1731822365618,0.24592801,90473.0,90472.0,0.0008556]
[1731822366048,0.26244437,90473.0,90472.0,0.0008556]
[1731822366259,0.24598293,90473.0,90472.0,0.0008556]
[1731822366489,0.26244437,90473.0,90472.0,0.0008556]
[1731822366726,0.25839144,90473.0,90472.0,0.0008556]
[1731822366999,0.31197614,90473.0,90472.0,0.0008556]
[1731822367253,0.30397614,90473.0,90472.0,0.0008556]
[1731822367506,0.15194614,90473.0,90472.0,0.0008556]
[1731822367739,0.26247614,90473.0,90472.0,0.0008556]
[1731822368707,0.15194614,90473.0,90472.0,0.0008556]
[1731822369165,0.15194614,90473.0,90472.0,0.00376673]
[1731822369626,0.15194614,90473.0,90472.0,0.0008556]
[1731822369869,0.0535847,90473.0,90472.0,0.1113866]
[1731822370106,0.0535847,90473.0,90472.0,0.11429773]
[1731822370107,0.07008928,90473.0,90472.0,0.11429773]
[1731822370324,0.0535847,90473.0,90472.0,0.11733996]
[1731822370543,0.0535847,90473.0,90472.0,0.33840096]
[1731822370544,0.07015229,90473.0,90472.0,0.33840096]
[1731822370759,0.02063304,90473.0,90472.0,0.33840096]
[1731822371498,0.07015229,90473.0,90472.0,0.33840096]
[1731822371724,0.07015229,90473.0,90472.0,0.11733996]
[1731822372151,0.05364591,90473.0,90472.0,0.11733996]
[1731822372368,0.07015229,90473.0,90472.0,0.11733996]
[1731822373227,0.02063304,90473.0,90472.0,0.24940251]
[1731822373656,0.03095477,90473.0,90472.0,0.24940251]
[1731822376496,0.0816,90489.0,90472.0,0.13887151]
[1731822376717,0.0816,90489.0,90488.0,0.110511]
[1731822376926,0.14559288,90489.0,90485.0,0.110514]
[1731822377185,0.0816,90489.0,90488.0,0.00291449]
[1731822377392,0.13526918,90489.0,90485.0,0.110514]
[1731822377634,0.0816,90489.0,90488.0,0.00291449]
[1731822377873,0.0816,90489.0,90482.0,0.221038]
[1731822377874,0.13526956,90489.0,90482.0,0.221038]
[1731822378101,0.0816,90489.0,90488.0,0.00291449]
[1731822378320,0.0816,90495.0,90494.0,0.110504]
[1731822378545,0.13526619,90495.0,90494.0,0.110409]
[1731822378762,0.05366619,90495.0,90494.0,0.110409]
[1731822378987,0.05366619,90495.0,90494.0,0.11332109]
[1731822379470,0.05366619,90495.0,90494.0,0.11636332]
[1731822380178,0.02064084,90495.0,90494.0,0.11636332]
[1731822380446,0.02064084,90495.0,90494.0,0.11645832]
[1731822381541,0.02235264,90495.0,90494.0,0.11645832]
[1731822381975,0.01435264,90495.0,90494.0,0.11645832]
[1731822383565,0.0017118,90495.0,90494.0,0.11645832]
[1731822384266,0.0017118,90495.0,90494.0,0.24852087]
[1731822384478,0.0017118,90495.0,90494.0,0.34852087]
[1731822387179,0.0017118,90495.0,90494.0,0.39362382]
[1731822393702,0.0017118,90495.0,90494.0,0.39862382]
[1731822396986,0.0745332,90502.0,90501.0,0.110496]
[1731822397451,0.0745332,90502.0,90501.0,0.11333956]
[1731822397659,0.0745332,90502.0,90501.0,0.11638179]
[1731822398134,0.0745332,90502.0,90501.0,0.00284356]
[1731822398135,0.1201332,90502.0,90501.0,0.00284356]
[1731822398512,0.1201332,90502.0,90494.0,0.00304223]
[1731822398945,0.2306282,90502.0,90496.0,0.110501]
[1731822399423,0.2306282,90502.0,90497.0,0.1105]
[1731822399644,0.2306282,90502.0,90497.0,0.11334966]
[1731822399852,0.1201332,90502.0,90500.0,0.110496]
[1731822400061,0.1201332,90502.0,90498.0,0.220998]
[1731822400287,0.1201332,90502.0,90501.0,0.11335867]
[1731822400497,0.1201332,90502.0,90501.0,0.110496]
[1731822400715,0.1201332,90502.0,90501.0,0.11335867]
[1731822400933,0.0745332,90502.0,90501.0,0.11335867]
[1731822401404,0.09797772,90507.0,90506.0,0.110489]
[1731822401630,0.0774,90507.0,90506.0,0.110489]
[1731822402087,0.0774,90507.0,90506.0,0.11335167]
[1731822404160,0.0015601,90508.0,90506.0,0.11335167]
[1731822404161,0.0015601,90508.0,90506.0,0.0059049]
[1731822404389,0.0015601,90508.0,90507.0,0.11353023]
[1731822404859,0.0015601,90508.0,90507.0,0.1163929]
[1731822406838,0.0015601,90508.0,90507.0,0.1393929]
[1731822409038,0.0015601,90508.0,90507.0,0.00273255]
[1731822409250,0.0015601,90508.0,90507.0,0.110488]
[1731822409719,0.0015601,90508.0,90507.0,0.11322055]
[1731822412419,0.16052019,90517.0,90516.0,0.110477]
[1731822412647,0.0753,90519.0,90518.0,0.110475]
[1731822413308,0.0753,90519.0,90518.0,0.11306145]
[1731822416308,0.0753,90519.0,90518.0,0.00258645]
[1731822416740,0.0753,90519.0,90518.0,0.11306145]
[1731822418048,0.0485,90530.0,90518.0,0.11306145]
[1731822418049,0.0789,90524.0,90523.0,0.110469]
[1731822418433,0.0789,90524.0,90523.0,0.11305213]
[1731822421544,0.17024829,90539.0,90523.0,0.11305213]
[1731822421545,0.0789,90531.0,90524.0,0.220935]
[1731822421761,0.0789,90531.0,90528.0,0.110462]
[1731822422443,0.0789,90531.0,90529.0,0.00257295]
[1731822422660,0.0789,90531.0,90528.0,0.110462]
[1731822422891,0.0789,90531.0,90530.0,0.00257278]
[1731822423114,0.0789,90531.0,90529.0,0.00257295]
[1731822423349,0.0789,90531.0,90530.0,0.00257278]
[1731822423822,0.0789,90531.0,90521.0,0.220942]
[1731822423823,0.0789,90531.0,90522.0,0.22094]
[1731822424043,0.0789,90531.0,90530.0,0.00257278]
[1731822424279,0.0789,90531.0,90520.0,0.17929737]
[1731822424280,0.0789,90531.0,90527.0,0.220928]
[1731822424504,0.0789,90531.0,90530.0,0.11303179]
[1731822424763,0.0789,90531.0,90530.0,0.11046]
[1731822425031,0.0789,90531.0,90530.0,0.11302535]
[1731822425931,0.0789,90531.0,90530.0,0.00256535]
[1731822426128,0.0485,90537.0,90530.0,0.00256535]
[1731822426129,0.191153,90536.0,90531.0,0.110458]
[1731822426411,0.191153,90536.0,90532.0,0.110457]
[1731822426412,0.0807,90536.0,90532.0,0.110457]
[1731822426633,0.0807,90536.0,90532.0,0.00256584]
[1731822427086,0.0727,90536.0,90531.0,0.110459]
[1731822427306,0.0727,90536.0,90533.0,0.00256568]
[1731822427539,0.0727,90536.0,90532.0,0.00256599]
[1731822427540,0.183154,90536.0,90532.0,0.00256599]
[1731822427764,0.0727,90536.0,90534.0,0.00256566]
[1731822428026,0.0727,90536.0,90523.0,0.110468]
[1731822428256,0.0727,90536.0,90521.0,0.04494814]
[1731822428482,0.0727,90536.0,90524.0,0.00256732]
[1731822428746,0.0727,90536.0,90525.0,0.110466]
[1731822428747,0.110454,90535.0,90525.0,0.110466]
[1731822428985,0.0727,90536.0,90526.0,0.110465]
[1731822429212,0.110458,90532.0,90525.0,0.002567]
[1731822429429,0.110458,90532.0,90526.0,0.11303167]
[1731822429657,0.220911,90534.0,90526.0,0.00256667]
[1731822429944,0.0727,90536.0,90516.0,0.04447254]
[1731822429945,0.220931,90526.0,90516.0,0.04447254]
[1731822430183,0.110473,90520.0,90514.0,0.16524829]
[1731822430397,0.110473,90520.0,90517.0,0.00256824]
[1731822430625,0.110473,90520.0,90517.0,0.00342374]
[1731822430850,0.110469,90523.0,90518.0,0.00256708]
[1731822431300,0.220935,90525.0,90518.0,0.00256708]
[1731822431551,0.0009822,90533.0,90518.0,0.00256708]
[1731822431552,0.220916,90532.0,90520.0,0.110472]
[1731822431784,0.110465,90526.0,90520.0,0.110472]
[1731822432009,0.110468,90524.0,90521.0,0.00256581]
[1731822432227,0.110469,90523.0,90517.0,0.0008555]
[1731822432462,0.0009822,90533.0,90517.0,0.0008555]
[1731822432463,0.110472,90521.0,90517.0,0.0008555]
[1731822432685,0.220933,90526.0,90517.0,0.0008555]
[1731822432916,0.110472,90521.0,90517.0,0.0008555]
[1731822433367,0.220928,90527.0,90517.0,0.0008555]
[1731822433592,0.220928,90527.0,90517.0,0.1113305]
[1731822433833,0.11047,90522.0,90517.0,0.1113305]
[1731822435909,0.110475,90519.0,90517.0,0.0008555]
[1731822436383,0.110472,90521.0,90517.0,0.0008555]
[1731822436841,0.220918,90531.0,90517.0,0.0008555]
[1731822437057,0.110474,90519.0,90517.0,0.0008555]
[1731822437245,0.110472,90520.0,90517.0,0.0008555]
[1731822437755,0.11047,90522.0,90517.0,0.0008555]
[1731822437984,0.22093,90527.0,90518.0,0.00256271]
[1731822438219,0.110472,90521.0,90518.0,0.00256271]
[1731822438905,0.110474,90519.0,90518.0,0.00256271]
[1731822439151,0.220944,90521.0,90518.0,0.00256271]
[1731822439362,0.220935,90525.0,90518.0,0.00256271]
[1731822439581,0.110472,90521.0,90518.0,0.00256271]
[1731822440252,0.220932,90526.0,90518.0,0.00256271]
[1731822440472,0.110471,90522.0,90518.0,0.00256271]
[1731822440927,0.110465,90527.0,90518.0,0.00256271]
[1731822441154,0.220918,90531.0,90518.0,0.00256271]
[1731822441421,0.220918,90531.0,90520.0,0.220945]
[1731822441637,0.110462,90529.0,90523.0,0.110468]
[1731822442062,0.102462,90529.0,90524.0,0.00256864]
[1731822442276,0.110463,90528.0,90524.0,0.00256864]
[1731822443580,0.110461,90529.0,90524.0,0.11303464]
[1731822444229,0.110461,90529.0,90524.0,0.00256864]
[1731822444443,0.110461,90529.0,90523.0,0.110469]